bitfinex-derivatives/quotes_BTCF0:USTF0_20250710
["timestamp","ask_amount","ask_price","bid_price","bid_amount"]
[1752160631290,0.2266472,111240.0,111230.0,0.2191764]
[1752160631494,0.2266472,111240.0,111230.0,2.1888164]
[1752160631689,0.53166412,111240.0,111230.0,1.5307164]
[1752160631901,0.54711412,111240.0,111230.0,1.5307164]
[1752160632192,0.54711412,111240.0,111230.0,1.8915164]
[1752160632493,0.2420972,111240.0,111230.0,1.8915164]
[1752160632695,0.54711412,111240.0,111230.0,1.8915164]
[1752160633695,0.55311412,111240.0,111230.0,1.8925164]
[1752160634997,0.55311412,111240.0,111230.0,1.96597099]
[1752160635592,0.55211412,111240.0,111230.0,1.96497099]
[1752160637200,0.58441412,111240.0,111230.0,1.96497099]
[1752160638396,0.2793972,111240.0,111230.0,1.96497099]
[1752160638701,0.58441412,111240.0,111230.0,1.96497099]
[1752160640497,0.2793972,111240.0,111230.0,1.96497099]
[1752160640796,0.61451412,111240.0,111230.0,1.96497099]
[1752160641301,0.61451412,111240.0,111230.0,1.97881054]
[1752160647003,0.007,111240.0,111230.0,2.30273811]
[1752160647704,0.007,111240.0,111230.0,3.80273811]
[1752160648803,0.005,111240.0,111230.0,3.48388164]
[1752160649105,0.005,111240.0,111230.0,3.78889856]
[1752160649398,0.3628,111250.0,111240.0,0.2191602]
[1752160649594,0.3628,111250.0,111240.0,0.89079404]
[1752160650002,0.3628,111250.0,111240.0,0.58577712]
[1752160650803,0.3628,111250.0,111240.0,0.60459107]
[1752160652305,0.3648,111250.0,111240.0,0.60459107]
[1752160653404,0.3668,111250.0,111240.0,0.60459107]
[1752160654306,0.3668,111250.0,111240.0,0.65819784]
[1752160656301,0.3648,111250.0,111240.0,0.65919784]
[1752160657005,0.3628,111250.0,111240.0,0.65919784]
[1752160657406,0.3628,111250.0,111240.0,0.35418092]
[1752160657607,0.3628,111250.0,111240.0,0.65919784]
[1752160658407,0.3628,111250.0,111240.0,0.73990932]
[1752160664313,0.3628,111250.0,111240.0,0.38153405]
[1752160664510,0.3628,111250.0,111240.0,0.68655097]
[1752160665111,0.3628,111250.0,111240.0,0.38153405]
[1752160665313,0.3628,111250.0,111240.0,0.68655097]
[1752160666114,0.3608,111260.0,111250.0,0.1956241]
[1752160666321,0.3608,111260.0,111250.0,1.88726575]
[1752160666609,0.1811,111260.0,111250.0,1.88726575]
[1752160667214,0.1821,111260.0,111250.0,1.88726575]
[1752160667518,0.0624,111270.0,111260.0,0.2201279]
[1752160667711,0.0624,111270.0,111260.0,0.58904482]
[1752160667908,0.58708754,111280.0,111270.0,0.1955918]
[1752160668109,0.65148754,111280.0,111270.0,1.47359024]
[1752160669003,0.34647062,111280.0,111270.0,1.47359024]
[1752160669215,0.65348754,111280.0,111270.0,1.47359024]
[1752160670216,0.63617672,111280.0,111270.0,1.47359024]
[1752160670510,0.3331598,111280.0,111270.0,1.47359024]
[1752160670715,0.59326532,111280.0,111270.0,1.47359024]
[1752160670911,0.08587,111280.0,111270.0,1.77860716]
[1752160671312,0.08587,111280.0,111270.0,1.84290716]
[1752160672312,0.036,111280.0,111270.0,1.84290716]
[1752160672514,0.035,111280.0,111270.0,1.84290716]
[1752160673017,0.035,111280.0,111270.0,1.89645189]
[1752160673318,0.0328,111290.0,111280.0,0.2200956]
[1752160673830,0.07977,111290.0,111280.0,0.52511252]
[1752160674019,0.07977,111290.0,111280.0,0.57865725]
[1752160674318,0.0643,111290.0,111280.0,0.57865725]
[1752160674509,0.002,111290.0,111280.0,0.57865725]
[1752160674818,0.002,111290.0,111280.0,0.64425725]
[1752160675416,0.004,111290.0,111280.0,0.72496873]
[1752160675817,0.006,111290.0,111280.0,0.72496873]
[1752160676316,0.004,111290.0,111280.0,0.671424]
[1752160676524,0.002,111290.0,111280.0,0.72689533]
[1752160677321,0.002,111290.0,111280.0,0.673424]
[1752160677522,0.002,111290.0,111280.0,0.72688645]
[1752160679720,0.54188402,111310.0,111300.0,0.2200634]
[1752160679920,0.63168912,111310.0,111300.0,1.4643034]
[1752160680515,0.2368671,111310.0,111300.0,1.4643034]
[1752160680717,0.60910311,111320.0,111310.0,0.2200472]
[1752160682310,0.62167311,111320.0,111310.0,0.2200472]
[1752160682912,0.68757311,111320.0,111310.0,0.2200472]
[1752160683116,0.68757311,111320.0,111310.0,0.29109122]
[1752160683624,0.67500311,111320.0,111310.0,0.29109122]
[1752160684023,0.36998619,111320.0,111310.0,0.29109122]
[1752160684227,0.68857311,111320.0,111310.0,0.29109122]
[1752160684631,0.68857311,111320.0,111310.0,0.30501813]
[1752160685325,0.68857311,111320.0,111310.0,1.36946093]
[1752160685520,0.68857311,111320.0,111310.0,1.54905813]
[1752160690533,0.38355619,111320.0,111310.0,1.54905813]
[1752160690733,0.002,111330.0,111320.0,0.1795811]
[1752160690935,0.54474322,111340.0,111330.0,0.3551444]
[1752160691122,0.60794322,111340.0,111330.0,1.47832571]
[1752160691526,0.38349692,111340.0,111330.0,1.47832571]
[1752160691732,0.32029692,111340.0,111330.0,1.54062571]
[1752160692236,0.1795488,111340.0,111330.0,1.65037191]
[1752160692434,0.3468989,111350.0,111340.0,0.2204788]
[1752160692630,0.65191582,111350.0,111340.0,0.29640571]
[1752160692826,0.65191582,111350.0,111340.0,0.28460553]
[1752160693027,0.66448582,111350.0,111340.0,0.07365673]
[1752160693226,0.66448582,111350.0,111340.0,0.05764673]
[1752160693832,0.67329503,111350.0,111340.0,0.25320553]
[1752160694131,0.66448582,111350.0,111340.0,0.25320553]
[1752160694327,0.3594689,111350.0,111340.0,0.25320553]
[1752160694524,0.66448582,111350.0,111340.0,0.25320553]
[1752160694830,0.66648582,111350.0,111340.0,0.07365673]
[1752160696346,0.67552542,111350.0,111340.0,0.07365673]
[1752160697241,0.67552542,111350.0,111340.0,0.25320553]
[1752160697631,0.67752542,111350.0,111340.0,0.25320553]
[1752160699241,0.67752542,111350.0,111340.0,0.07365673]
[1752160699542,0.67752542,111350.0,111340.0,0.25320553]
[1752160699730,0.67752542,111350.0,111340.0,0.07365673]
[1752160699931,0.67752542,111350.0,111340.0,0.25320553]
[1752160700232,0.66848582,111350.0,111340.0,0.07365673]
[1752160701227,0.857256,111350.0,111340.0,0.03272673]
[1752160703735,0.857256,111350.0,111340.0,0.01392691]
[1752160704237,0.179565,111330.0,111320.0,0.15323484]
[1752160704432,0.83442394,111330.0,111320.0,0.11295484]
[1752160704633,0.89742394,111330.0,111320.0,0.11295484]
[1752160705139,0.89742394,111330.0,111320.0,0.05949239]
[1752160705533,0.89742394,111330.0,111320.0,0.06049239]
[1752160705733,0.89742394,111330.0,111320.0,0.04448239]
[1752160705933,0.89742394,111330.0,111320.0,0.01956239]
[1752160706443,0.89742394,111330.0,111320.0,0.001]
[1752160706943,0.89742394,111330.0,111320.0,0.002]
[1752160707628,0.89742394,111330.0,111320.0,0.04293]
[1752160707835,1.21436702,111330.0,111320.0,0.07563]
[1752160708040,1.21436702,111330.0,111320.0,0.10603]
[1752160709834,0.8336601,111330.0,111320.0,0.2856111]
[1752160710539,1.13867702,111330.0,111320.0,0.2856111]
[1752160711242,0.51683702,111330.0,111320.0,0.2856111]
[1752160711438,0.8336601,111330.0,111320.0,0.2856111]
[1752160711639,0.51683702,111330.0,111320.0,0.2856111]
[1752160712336,0.0322551,111330.0,111320.0,0.59062802]
[1752160712538,0.0169751,111330.0,111320.0,0.59062802]
[1752160712738,0.0169751,111330.0,111320.0,1.21246802]
[1752160713039,0.0169751,111330.0,111320.0,1.26593047]
[1752160713240,1.34333746,111360.0,111350.0,0.1955427]
[1752160713442,0.73677746,111360.0,111350.0,0.2204627]
[1752160713744,1.38199525,111360.0,111350.0,0.2514627]
[1752160713940,1.03209653,111360.0,111350.0,0.2514627]
[1752160714243,1.33680878,111360.0,111350.0,0.2514627]
[1752160714543,1.33880878,111360.0,111350.0,0.2514627]
[1752160714743,0.71896878,111360.0,111350.0,0.2514627]
[1752160714937,0.64848313,111360.0,111350.0,0.2704587]
[1752160715138,0.64848313,111360.0,111350.0,0.57547562]
[1752160715139,0.03822552,111360.0,111350.0,0.57547562]
[1752160715346,0.21774212,111360.0,111350.0,0.2704587]
[1752160716045,0.21774212,111360.0,111350.0,0.57547562]
[1752160716438,0.21774212,111360.0,111350.0,0.3024587]
[1752160716641,0.21774212,111360.0,111350.0,0.31623188]
[1752160716845,0.006,111360.0,111350.0,0.69260399]
[1752160717446,0.1855166,111360.0,111350.0,0.69260399]
[1752160717948,0.1855166,111360.0,111350.0,0.70095309]
[1752160718852,0.1855166,111360.0,111350.0,0.77692042]
[1752160719445,0.1855166,111360.0,111350.0,0.39593329]
[1752160719647,0.1855166,111360.0,111350.0,0.38216299]
[1752160719946,0.1855166,111360.0,111350.0,0.38204409]
[1752160720246,0.006,111360.0,111350.0,0.38204409]
[1752160720447,0.1855166,111360.0,111350.0,0.76302834]
[1752160721044,0.1855166,111360.0,111350.0,0.38204409]
[1752160722643,0.58276085,111360.0,111350.0,0.12243001]
[1752160722847,0.58276085,111360.0,111350.0,0.92584271]
[1752160723045,0.2017766,111360.0,111350.0,0.92584271]
[1752160723240,0.56650085,111360.0,111350.0,0.92584271]
[1752160723547,0.006,111360.0,111350.0,1.30730696]
[1752160723850,0.006,111360.0,111350.0,1.36076941]
[1752160724345,0.006,111360.0,111350.0,0.73640941]
[1752160724546,0.006,111360.0,111350.0,1.36088941]
[1752160725450,0.004,111360.0,111350.0,1.43330723]
[1752160725650,0.002,111370.0,111360.0,0.1947966]
[1752160725845,0.002,111370.0,111360.0,0.2824966]
[1752160726448,0.002,111370.0,111360.0,0.66348085]
[1752160726854,0.004,111370.0,111360.0,0.2824966]
[1752160727651,0.006,111370.0,111360.0,0.2824966]
[1752160728949,0.006,111370.0,111360.0,0.33595905]
[1752160730140,0.006,111370.0,111360.0,0.2824966]
[1752160731853,0.006,111370.0,111360.0,0.33595905]
[1752160732248,0.006,111370.0,111360.0,0.2824966]
[1752160733251,0.58274475,111370.0,111360.0,0.2824966]
[1752160733451,0.58274475,111370.0,111360.0,0.9070966]
[1752160734053,0.40324425,111370.0,111360.0,0.9070966]
[1752160734254,0.02226,111370.0,111360.0,0.9070966]
[1752160734554,0.1855005,111370.0,111360.0,0.9070966]
[1752160734854,0.006,111370.0,111360.0,0.9070966]
[1752160735051,0.1855005,111370.0,111360.0,0.9070966]
[1752160735649,0.58274475,111370.0,111360.0,0.2824966]
[1752160735852,0.58274475,111370.0,111350.0,0.28779093]
[1752160735853,0.2083466,111360.0,111350.0,0.09154245]
[1752160736047,1.0342151,111360.0,111350.0,0.03808]
[1752160736352,1.0342151,111360.0,111350.0,0.2176127]
[1752160736353,0.2267766,111360.0,111350.0,0.2176127]
[1752160736555,0.1957766,111360.0,111350.0,0.2826127]
[1752160737051,0.62033085,111360.0,111350.0,0.2494127]
[1752160737261,0.65273085,111360.0,111350.0,0.03808]
[1752160737450,0.65273085,111360.0,111350.0,0.2176127]
[1752160737655,0.65373085,111360.0,111350.0,0.03808]
[1752160739152,0.2083627,111350.0,111340.0,0.09154245]
[1752160739457,0.65344695,111350.0,111340.0,0.03808]
[1752160739660,0.65344695,111350.0,111340.0,0.2176289]
[1752160740263,0.65344695,111350.0,111340.0,0.2196289]
[1752160740562,0.67026044,111350.0,111340.0,0.2196289]
[1752160740959,0.59424507,111350.0,111340.0,0.2196289]
[1752160741158,1.21924507,111350.0,111340.0,0.2196289]
[1752160741458,1.02714237,111350.0,111340.0,0.2196289]
[1752160741667,1.20667507,111350.0,111340.0,0.2196289]
[1752160741968,0.59424507,111350.0,111340.0,0.2196289]
[1752160742164,1.21908507,111350.0,111340.0,0.2196289]
[1752160742355,1.21908507,111350.0,111340.0,0.2206289]
[1752160743966,0.59424507,111350.0,111340.0,0.2206289]
[1752160744172,1.21912507,111350.0,111340.0,0.2206289]
[1752160744965,0.59424507,111350.0,111340.0,0.2206289]
[1752160745167,1.21880507,111350.0,111340.0,0.2206289]
[1752160745366,1.21880507,111350.0,111340.0,0.23441531]
[1752160745559,0.59424507,111350.0,111340.0,0.23441539]
[1752160745759,1.21868507,111350.0,111340.0,0.23441539]
[1752160745968,0.59424507,111350.0,111340.0,0.23441539]
[1752160746170,1.21856507,111350.0,111340.0,0.23441539]
[1752160746358,1.21856507,111350.0,111340.0,0.05486649]
[1752160746859,1.21856507,111350.0,111340.0,0.23441529]
[1752160749381,0.91359619,111350.0,111340.0,0.23441529]
[1752160749980,1.21856507,111350.0,111340.0,0.23441529]
[1752160750676,1.21856507,111350.0,111340.0,0.05486649]
[1752160751078,1.21856507,111350.0,111340.0,0.23441529]
[1752160756085,0.91359619,111350.0,111340.0,0.23441529]
[1752160756285,1.21856507,111350.0,111340.0,0.23441529]
[1752160757386,0.21260619,111350.0,111340.0,0.23441529]
[1752160757587,0.21260619,111350.0,111340.0,0.29641529]
[1752160757588,0.83616619,111350.0,111340.0,0.29641529]
[1752160757988,0.22517619,111350.0,111340.0,0.29641529]
[1752160758187,0.84861619,111350.0,111340.0,0.60138417]
[1752160758384,0.03307349,111350.0,111340.0,0.60138417]
[1752160758684,0.01681349,111350.0,111340.0,1.27824662]
[1752160758882,0.01681349,111350.0,111340.0,1.3589581]
[1752160759285,0.01681349,111350.0,111340.0,1.5385821]
[1752160759486,0.30337164,111370.0,111360.0,0.52400548]
[1752160759790,0.42879052,111370.0,111360.0,0.23282309]
[1752160759991,0.42879052,111370.0,111360.0,0.26422309]
[1752160759992,0.62531983,111370.0,111360.0,0.26422309]
[1752160760289,0.63788983,111370.0,111360.0,0.08477681]
[1752160760585,0.63788983,111370.0,111360.0,0.05337681]
[1752160760791,0.67458983,111370.0,111360.0,0.05337681]
[1752160760982,0.67458983,111370.0,111360.0,0.23289341]
[1752160761392,0.67458983,111370.0,111360.0,0.05337681]
[1752160762086,0.67458983,111370.0,111360.0,0.10682336]
[1752160762386,0.67458983,111370.0,111360.0,0.28633996]
[1752160763192,0.67458983,111370.0,111360.0,0.31783996]
[1752160769287,0.67458983,111370.0,111360.0,0.26439341]
[1752160769893,0.67458983,111370.0,111360.0,0.2732068]
[1752160770600,0.61095719,111370.0,111360.0,0.26439341]
[1752160770800,0.52080819,111370.0,111360.0,0.26439341]
[1752160771100,0.52080819,111370.0,111360.0,0.31783996]
[1752160771400,0.52080819,111370.0,111360.0,0.30398315]
[1752160771699,0.53337819,111370.0,111360.0,0.30398315]
[1752160772498,0.52080819,111370.0,111360.0,0.30398315]
[1752160775601,0.52080819,111370.0,111360.0,0.31779359]
[1752160776695,0.53337819,111370.0,111360.0,0.31779318]
[1752160781006,0.53137819,111370.0,111360.0,0.31979318]
[1752160783898,0.52937819,111370.0,111360.0,0.32079318]
[1752160784707,0.51680819,111370.0,111360.0,0.32079318]
[1752160785709,0.21183171,111370.0,111360.0,1.86972206]
[1752160786311,0.21183171,111370.0,111360.0,1.95043354]
[1752160786508,0.03233121,111370.0,111360.0,1.86972206]
[1752160786708,0.01579,111380.0,111370.0,0.2187305]
[1752160786905,0.50024318,111380.0,111370.0,0.31718708]
[1752160788814,0.1952743,111380.0,111370.0,0.31718708]
[1752160789313,0.1962743,111380.0,111370.0,0.62215596]
[1752160789507,0.1962743,111380.0,111370.0,0.31718708]
[1752160790016,0.50124318,111380.0,111370.0,0.31718708]
[1752160790618,0.50124318,111380.0,111370.0,0.30337705]
[1752160792418,0.1962743,111380.0,111370.0,0.30337705]
[1752160792604,0.50124318,111380.0,111370.0,0.30337705]
[1752160793012,0.1962743,111380.0,111370.0,0.30337705]
[1752160793212,0.50124318,111380.0,111370.0,0.92529705]
[1752160793713,0.50124318,111380.0,111370.0,0.74579655]
[1752160793918,0.51381318,111380.0,111370.0,0.71459655]
[1752160794216,0.57991318,111380.0,111370.0,0.71455655]
[1752160794719,0.54701318,111380.0,111370.0,0.89405705]
[1752160794921,0.54701318,111380.0,111370.0,0.92455705]
[1752160795610,0.54701318,111380.0,111370.0,0.9383544]
[1752160796622,0.54701318,111380.0,111370.0,0.3164744]
[1752160798722,0.54701318,111380.0,111370.0,0.31670823]
[1752160799820,0.54701318,111380.0,111370.0,0.34740823]
[1752160802723,0.50124318,111380.0,111370.0,0.34740823]
[1752160807123,0.51381318,111380.0,111370.0,0.34740823]
[1752160807325,0.54511318,111380.0,111370.0,0.34740823]
[1752160807629,0.54511318,111380.0,111370.0,0.34940823]
[1752160808130,0.54411318,111380.0,111370.0,0.34940823]
[1752160808331,0.54411318,111380.0,111370.0,0.14040773]
[1752160808526,0.54411318,111380.0,111370.0,0.09449773]
[1752160808721,0.57601318,111380.0,111370.0,0.27399813]
[1752160808926,0.57601318,111380.0,111370.0,0.29057813]
[1752160811336,0.57601318,111380.0,111370.0,0.27399813]
[1752160813630,0.57601318,111380.0,111370.0,0.09449773]
[1752160813830,0.2076805,111370.0,111360.0,0.05355539]
[1752160814130,1.76222821,111370.0,111340.0,0.12093148]
[1752160814328,0.48450158,111350.0,111340.0,0.30048028]
[1752160814533,1.15473791,111350.0,111340.0,0.12093148]
[1752160814735,1.21973791,111350.0,111340.0,0.04022]
[1752160814932,1.21973791,111350.0,111340.0,0.02402]
[1752160815131,1.22884579,111350.0,111340.0,0.02402]
[1752160815336,1.53381467,111350.0,111340.0,0.007]
[1752160816427,0.1795649,111330.0,111320.0,0.25399644]
[1752160816628,1.44285835,111330.0,111320.0,0.25399644]
[1752160816827,0.54912947,111330.0,111320.0,0.25399644]
[1752160817034,0.30496888,111330.0,111320.0,0.28559644]
[1752160817238,0.48453378,111330.0,111320.0,0.28559644]
[1752160817530,1.22724738,111340.0,111330.0,0.2197849]
[1752160817735,1.25974385,111340.0,111330.0,0.2825849]
[1752160818836,1.26274385,111340.0,111330.0,0.07182]
[1752160819034,1.29504385,111340.0,111330.0,0.05562]
[1752160819429,1.29504385,111340.0,111330.0,0.02402]
[1752160820143,1.29504385,111340.0,111330.0,0.2035849]
[1752160821535,1.29504385,111340.0,111330.0,0.02402]
[1752160821933,0.1795649,111330.0,111320.0,0.35165074]
[1752160822133,0.51463378,111330.0,111320.0,0.34317074]
[1752160823244,0.48453378,111330.0,111320.0,0.37567074]
[1752160823438,1.10645378,111330.0,111320.0,0.37567074]
[1752160823628,0.01672008,111330.0,111320.0,0.37567074]
[1752160823831,0.81820498,111330.0,111320.0,0.37567074]
[1752160824032,0.50225386,111330.0,111320.0,0.37567074]
[1752160824440,0.32268896,111330.0,111320.0,0.37567074]
[1752160824643,0.50225386,111330.0,111320.0,0.37567074]
[1752160824943,0.50225386,111330.0,111320.0,0.37767074]
[1752160825734,0.50225386,111330.0,111320.0,0.39160802]
[1752160828340,0.80722274,111330.0,111320.0,0.04175382]
[1752160828536,0.83832274,111330.0,111320.0,0.01773382]
[1752160828734,0.86842274,111330.0,111320.0,0.01773382]
[1752160829637,1.21790294,111330.0,111320.0,0.23753492]
[1752160829842,1.21790294,111330.0,111320.0,0.27063492]
[1752160830040,0.56588294,111330.0,111320.0,0.27063492]
[1752160830242,1.18780294,111330.0,111320.0,0.30273492]
[1752160830442,0.53335386,111330.0,111320.0,0.30273492]
[1752160830642,0.50225386,111330.0,111320.0,0.30273492]
[1752160830943,1.15672154,111330.0,111320.0,0.30273492]
[1752160831345,1.12417386,111330.0,111320.0,0.30273492]
[1752160831737,1.15755053,111330.0,111320.0,0.30273492]
[1752160832342,0.50225386,111330.0,111320.0,0.30273492]
[1752160832542,1.12421386,111330.0,111320.0,0.30273492]
[1752160833142,1.12421386,111330.0,111320.0,0.28879764]
[1752160833543,1.42918274,111330.0,111320.0,0.28879764]
[1752160833747,1.46048274,111330.0,111320.0,0.06091654]
[1752160833945,1.49288274,111330.0,111320.0,0.24049764]
[1752160834249,1.5262673,111330.0,111320.0,0.24049764]
[1752160834447,1.5262673,111330.0,111320.0,0.06091654]
[1752160834638,1.5262673,111330.0,111320.0,0.00379654]
[1752160835350,1.5262673,111330.0,111320.0,0.02781654]
[1752160837552,1.49288274,111330.0,111320.0,0.02781654]
[1752160837752,1.52629406,111330.0,111320.0,0.02781654]
[1752160840654,1.52629406,111330.0,111320.0,0.22359764]
[1752160840655,0.53566518,111330.0,111320.0,0.22359764]
[1752160840851,1.15762518,111330.0,111320.0,0.28759764]
[1752160841556,0.53566518,111330.0,111320.0,0.28759764]
[1752160841759,1.15762518,111330.0,111320.0,0.28759764]
[1752160844756,1.1578522,111330.0,111320.0,0.28759764]
[1752160848465,1.15825051,111330.0,111320.0,0.28759764]
[1752160852879,1.15825051,111330.0,111320.0,0.30151504]
[1752160853587,0.53629051,111330.0,111320.0,0.30151504]
[1752160853885,1.15821051,111330.0,111320.0,0.30151469]
[1752160856687,0.85324163,111330.0,111320.0,0.30151469]
[1752160856876,0.53629051,111330.0,111320.0,0.30151469]
[1752160857080,0.85332772,111330.0,111320.0,0.30151469]
[1752160857275,1.1582566,111330.0,111320.0,0.30151469]
[1752160857889,1.1582566,111330.0,111320.0,0.28759764]
[1752160858088,1.1582566,111330.0,111320.0,0.30149611]
[1752160859788,0.5364166,111330.0,111320.0,0.30149611]
[1752160859990,1.1582566,111330.0,111320.0,0.30149611]
[1752160860889,0.5364166,111330.0,111320.0,0.30149611]
[1752160861092,1.1582566,111330.0,111320.0,0.30149611]
[1752160861288,0.23144772,111330.0,111320.0,0.30149611]
[1752160861591,0.85324772,111330.0,111320.0,0.30149611]
[1752160862889,0.85321449,111330.0,111320.0,0.30149611]
[1752160863280,1.15818337,111330.0,111320.0,0.30149611]
[1752160863685,1.15818337,111330.0,111320.0,0.30147496]
[1752160867389,0.53638337,111330.0,111320.0,0.30147496]
[1752160868197,0.53638337,111330.0,111320.0,0.27067486]
[1752160868395,0.60048337,111330.0,111320.0,0.27067486]
[1752160868594,0.60047324,111330.0,111320.0,0.27067486]
[1752160870099,0.60047324,111330.0,111320.0,0.30187486]
[1752160871097,1.22215324,111330.0,111320.0,0.30203404]
[1752160871293,0.60047324,111330.0,111320.0,0.30203404]
[1752160871492,1.19065324,111330.0,111320.0,0.30203404]
[1752160874397,1.19065707,111330.0,111320.0,0.30203404]
[1752160874996,0.05184329,111330.0,111320.0,0.60700292]
[1752160875391,0.05184329,111330.0,111320.0,0.60700227]
[1752160876099,0.05184329,111330.0,111320.0,1.85024227]
[1752160876303,0.01834541,111330.0,111320.0,1.85024227]
[1752160878101,0.01834541,111330.0,111320.0,1.95705128]
[1752160878302,0.01834541,111330.0,111320.0,1.85024227]
[1752160878802,0.01834541,111330.0,111320.0,2.13670727]
[1752160879207,0.45793038,111360.0,111350.0,0.1950526]
[1752160879504,0.3527008,111360.0,111350.0,0.23306845]
[1752160879806,0.3078191,111360.0,111350.0,0.29506845]
[1752160880006,0.47809058,111360.0,111350.0,0.29506845]
[1752160883511,0.47909058,111360.0,111350.0,0.29506845]
[1752160884802,0.35618178,111360.0,111350.0,0.29506845]
[1752160885008,0.53569828,111360.0,111350.0,0.29506845]
[1752160885208,0.0344713,111360.0,111350.0,0.29506845]
[1752160885606,0.0344713,111360.0,111350.0,1.84291733]
[1752160885807,0.001,111360.0,111350.0,1.84291733]
[1752160886418,0.345116,111380.0,111370.0,0.1950204]
[1752160886713,0.68343994,111380.0,111370.0,0.23303625]
[1752160887014,0.68343994,111380.0,111370.0,0.26413625]
[1752160887412,0.36932394,111380.0,111370.0,0.26413625]
[1752160887611,0.51780824,111380.0,111370.0,0.29723625]
[1752160887811,0.51880824,111380.0,111370.0,0.29723625]
[1752160888614,0.52180824,111380.0,111370.0,0.29723625]
[1752160888911,0.21683936,111380.0,111370.0,0.29723151]
[1752160889103,0.52180824,111380.0,111370.0,0.29723151]
[1752160890413,0.48845318,111380.0,111370.0,0.29723151]
[1752160890725,0.30896888,111380.0,111370.0,0.29723151]
[1752160890904,0.48845318,111380.0,111370.0,0.29723151]
[1752160893320,0.1834843,111380.0,111370.0,0.29723151]
[1752160893521,0.48845318,111380.0,111370.0,0.29723151]
[1752160897422,0.48845318,111380.0,111370.0,0.29723093]
[1752160900622,0.48845318,111380.0,111370.0,0.29723111]
[1752160901217,0.30896888,111380.0,111370.0,0.29723111]
[1752160901417,0.48845318,111380.0,111370.0,0.29723111]
[1752160901621,0.30896888,111380.0,111370.0,0.29723111]
[1752160901810,0.48845318,111380.0,111370.0,0.29723111]
[1752160902422,0.30896888,111380.0,111370.0,0.29723111]
[1752160902622,0.34220154,111380.0,111370.0,0.29723111]
[1752160902826,0.52168584,111380.0,111370.0,0.29723111]
[1752160904325,0.03723266,111380.0,111370.0,0.60219999]
[1752160904629,0.1834843,111380.0,111370.0,1.84431999]
[1752160904928,0.52170024,111380.0,111370.0,1.53935111]
[1752160905226,0.52170854,111380.0,111370.0,1.53935111]
[1752160905920,0.48845318,111380.0,111370.0,1.53935111]
[1752160906427,0.52171653,111380.0,111370.0,1.53935111]
[1752160906729,0.03726335,111380.0,111370.0,1.84431999]
[1752160906928,0.004,111380.0,111370.0,1.53935111]
[1752160907325,0.03727245,111380.0,111370.0,1.53935111]
[1752160907826,0.30896888,111380.0,111370.0,1.53935111]
[1752160908223,0.03727899,111380.0,111370.0,1.53935111]
[1752160908524,0.004,111380.0,111370.0,1.53935111]
[1752160910028,0.03728387,111380.0,111370.0,1.53935111]
[1752160911724,0.007,111400.0,111390.0,0.2178182]
[1752160911928,0.49142098,111400.0,111390.0,0.26404891]
[1752160912127,0.49142098,111400.0,111390.0,1.53598891]
[1752160913030,0.49142098,111400.0,111390.0,1.53598634]
[1752160913230,0.1974521,111400.0,111390.0,1.53598634]
[1752160913428,0.50242098,111400.0,111390.0,1.53598634]
[1752160913728,0.50042098,111400.0,111390.0,1.53598634]
[1752160913936,0.49942098,111400.0,111390.0,1.53598634]
[1752160914120,0.49942098,111400.0,111390.0,1.54497415]
[1752160914322,0.1944521,111400.0,111390.0,1.54497415]
[1752160914629,0.49942098,111400.0,111390.0,1.54497415]
[1752160914929,0.49942098,111400.0,111390.0,1.53598634]
[1752160923439,0.80438986,111400.0,111390.0,0.29414634]
[1752160923639,0.86818986,111400.0,111390.0,0.29414634]
[1752160923946,0.59598887,111400.0,111390.0,0.29414634]
[1752160930049,0.41653677,111400.0,111390.0,0.29414634]
[1752160930241,0.04776789,111400.0,111390.0,1.10266684]
[1752160930443,0.04776789,111400.0,111390.0,1.41845796]
[1752160930947,0.002,111410.0,111400.0,0.2184321]
[1752160931146,0.002,111410.0,111400.0,0.60022912]
[1752160931654,0.03474303,111410.0,111400.0,0.60022912]
[1752160931855,0.03474303,111410.0,111400.0,0.29526024]
[1752160932451,0.03474303,111410.0,111400.0,0.60022912]
[1752160934045,0.00694153,111420.0,111410.0,0.2184159]
[1752160934252,0.002,111440.0,111430.0,0.2183837]
[1752160934554,0.48435648,111440.0,111430.0,0.88503184]
[1752160934756,0.48435648,111440.0,111430.0,0.91753184]
[1752160934956,0.48435648,111440.0,111430.0,0.91731187]
[1752160935358,0.1793876,111440.0,111430.0,0.9035037]
[1752160935558,0.48435648,111440.0,111430.0,0.9035037]
[1752160935957,0.48435648,111440.0,111430.0,0.97362144]
[1752160936558,0.48635648,111440.0,111430.0,0.97362144]
[1752160938456,0.1813876,111440.0,111430.0,0.97362144]
[1752160938856,0.48635648,111440.0,111430.0,0.97362144]
[1752160939061,0.48635648,111440.0,111430.0,0.07088]
[1752160939259,0.55125648,111440.0,111430.0,0.03898]
[1752160939961,0.55125648,111440.0,111430.0,0.02388]
[1752160942260,1.17185648,111440.0,111430.0,0.02388]
[1752160942867,0.1945799,111420.0,111410.0,0.25794145]
[1752160943065,0.2179999,111420.0,111410.0,0.32334145]
[1752160943264,1.47849766,111420.0,111410.0,0.0805]
[1752160943469,0.218016,111410.0,111400.0,0.0151]
[1752160943664,0.55298488,111410.0,111400.0,0.0151]
[1752160943868,0.1946121,111400.0,111390.0,0.32565866]
[1752160944056,1.14356098,111400.0,111390.0,0.32565866]
[1752160944963,1.14356098,111400.0,111390.0,0.34953866]
[1752160945359,1.44852986,111400.0,111390.0,0.00479541]
[1752160945670,1.51182986,111400.0,111390.0,0.00979541]
[1752160946168,1.51182986,111400.0,111390.0,0.00779541]
[1752160946464,1.5441683,111400.0,111390.0,0.02155533]
[1752160947660,0.1946443,111380.0,111370.0,0.10068]
[1752160947862,1.16075092,111380.0,111370.0,0.05478]
[1752160948161,0.1946605,111370.0,111360.0,0.3100368]
[1752160948367,1.14364938,111370.0,111360.0,0.3730368]
[1752160948764,1.14364938,111370.0,111360.0,0.2832796]
[1752160949470,1.14364938,111370.0,111360.0,0.1037759]
[1752160949672,1.17554938,111370.0,111360.0,0.1037759]
[1752160950063,1.17554938,111370.0,111360.0,0.2832925]
[1752160950464,1.17554938,111370.0,111360.0,0.1037759]
[1752160950864,1.20664938,111370.0,111360.0,0.1067759]
[1752160951072,1.20664938,111370.0,111360.0,0.2892925]
[1752160951073,1.20668938,111370.0,111360.0,0.2892925]
[1752160951273,1.20668938,111370.0,111360.0,0.0077959]
[1752160951573,1.20668938,111370.0,111360.0,0.2111925]
[1752160951775,1.20668938,111370.0,111360.0,0.0316759]
[1752160956669,1.17570938,111370.0,111360.0,0.2262925]
[1752160956870,1.17570938,111370.0,111360.0,0.2904925]
[1752160957577,1.18463646,111370.0,111360.0,0.2904925]
[1752160958073,1.18467646,111370.0,111360.0,0.1109759]
[1752160958278,1.21577646,111370.0,111360.0,0.1109759]
[1752160958474,0.59497646,111370.0,111360.0,0.1109759]
[1752160958778,1.21577646,111370.0,111360.0,0.1109759]
[1752160959476,1.20684938,111370.0,111360.0,0.2904925]
[1752160959672,0.58604938,111370.0,111360.0,0.2904925]